{"text_format":"1","workbook":"xlsx","n_sheets":3,"sheets":["прил 12 ","прил 13","прил 18"],"not_rendered":{"charts":0,"images":0,"macros":0,"external_links":0,"defined_names":4,"comments":0,"pivot_tables":0},"unopened":[],"bounds":{"document_bytes":16777216,"sheet_cells":100000,"rows_first":2000,"rows_last":500,"rows_between":2000,"halvings":0,"cell_chars":16384,"cell_head_chars":4096},"cells_cut":0,"cells_raw":0,"read":"whole","date_system":"1900"}

{"sheet":"прил 12 ","index":0,"n_rows":59,"n_cols":8,"rows_kept":59,"cut":false,"hidden":false,"merged":[[8,1,8,6],[9,1,9,6]]}
[null,null,null,null,"Приложение 12"]
[null,null,null,null," к решению Совета депутатов"]
[null,null,null,null,"МО Тельмановского сельского поселения"]
[null,null,null,null,"Тосненского района"]
[null,null,null,null,"Ленинградской области"]
[null,null,null,null,"от 15.12.2010 г. № 160"]
[]
[]
[null,"Распределение бюджетных ассигнований"]
[null,"на реализацию ведомственных целевых программ на 2011 год"]
[null,null,null,null,null,null,"   (тысяч рублей)"]
[]
["№ п/п","Наименование","ЦСР (целевая статья)","Рз (раздел)","ПР (подраздел)","ВР (вид расхода)","2011 год","2010 год"]
[1,"Целевые программы муниципальных образований",7950000]
[null,"Ведомственная целевая программа «Переход на отпуск коммунальных ресурсов (тепловой энергии, горячей и холодной воды) потребителям Тельмановского сельского поселения Тосненского района Ленинградской области в соответствии с показаниями коллективных (общедомовых) приборов учета потребления энергоресурсов на 2010 год»",7950001]
[null,"Жилищно-коммунальное хозяйство",7950001,"0500",null,null,{"$f":"G18","v":0}]
[null,"Коммунальное хозяйство",7950001,"0500","0502",null,{"$f":"G18","v":0}]
[null,"Выполнение функций органами местного самоуправления",7950001,"0500","0502","500"]
[2,"Целевые программы муниципальных образований",7950000]
[null,"Долгосрочная комплексная программа по благоустройству населенных пунктов по МО \"Тельмановское сельское поселение\" на 2010-2012 годы",7950002,null,null,null,{"$f":"G21","v":4425}]
[null,"Жилищно-коммунальное хозяйство",7950002,"0500",null,null,{"$f":"G22","v":4425}]
[null,"Благоустройство",7950002,"0500","0503",null,{"$f":"G23","v":4425}]
[null,"Выполнение функций органами местного самоуправления",7950002,"0500","0503","500",4425]
[3,"Целевые программы муниципальных образований",7950000]
[null,"Долгосрочная программа \"Молодежь Тельмановского сельского поселения в 2010-2012гг.",7950003,null,null,null,{"$f":"G28","v":477},750]
[null,"Образование",7950003,"0700",null,null,{"$f":"G28","v":477},750]
[null,"Молодежная политика и оздоровление детей",7950003,"0700","0707",null,{"$f":"G28","v":477},750]
[null,"Выполнение функций органами местного самоуправления",7950003,"0700","0707",500,477,750]
[3,"Целевые программы муниципальных образований",7950000]
[null,"Целевая программа \"Сохранение и развитие сферы культуры Тосненского городского поселения Тосненского района Ленинградской области на 2010-2012 годы\"",7951300,"",null,"",{"$f":"G33","v":5400},1045.5]
[null,"Культура, кинематография, средства массовой информации",7951300,"0800",null,"",{"$f":"G33","v":5400},1045.5]
[null,"Другие вопросы в области культуры, кинематографии и средств массовой информации",7951300,"0800","0806","",{"$f":"G33","v":5400},1045.5]
[null,"Выполнение функций органами местного самоуправления",7951300,"0800","0806","500",5400,1045.5]
[4,"Целевые программы муниципальных образований",7950000]
[null,"Долгосрочная программа \"Развитие физичческой культуры и спорта в муниципальном образовании Тельмановское сельское поселение Тосненского района Ленинградской области на 2010-2012гг.\"",7950004,null,null,null,{"$f":"G38","v":444}]
[null,"Здравоохранение, физическая культура и спорт",7950004,"1100",null,null,{"$f":"G38","v":444}]
[null,"Физическая культура и спорт",7950004,"1100","1105",null,{"$f":"G38","v":444}]
[null,"Выполнение функций органами местного самоуправления",7950004,"1100","1105",500,444]
[5,"Целевые программы муниципальных образований",7950000]
[null,"Целевая программа \"Пожарная безопасность на территории Тосненского городского поселения Тосненского района Ленинградской области на 2008-2010 годы\"",7951500,null,null,null,{"$f":"G41","v":1963}]
[null,"Национальная безопасность и правоохранительная деятельность",7951500,"0300",null,null,{"$f":"G42","v":1963}]
[null,"Защита населения и территории от чрезвычайных ситуаций природного и техногенного характера, гражданская оборона",7951500,"0300","0309",null,{"$f":"G43","v":1963}]
[null,"Выполнение функций органами местного самоуправления",7951500,"0300","0309",500,1963]
[6,"Целевые программы муниципальных образований",7950000]
[null,"Целевая программа \"Газификация индивидуальных жилых домов, расположенных на территории Тосненского городского поселения Тосненского района Ленинградской области на период 2008 -2013 годы\"",7951600,null,null,null,{"$f":"G46","v":2500}]
[null,"Жилищно-коммунальное хозяйство",7951600,"0500",null,null,{"$f":"G47","v":2500}]
[null,"Коммунальное хозяйство",7951600,"0500","0502",null,{"$f":"G48","v":2500}]
[null,"Бюджетные инвестиции",7951600,"0500","0502","003",2500]
[4,"Целевые программы муниципальных образований",7950000]
[null,"Целевая программа \"Повышение безопасности дорожного движения на территории Тосненского городского поселения Тосненского района Ленинградской области на 2010 -2012 годы\"",7951700,null,null,null,{"$f":"G51","v":15250}]
[null,"Жилищно-коммунальное хозяйство",7951700,"0500",null,null,{"$f":"G52","v":15250}]
[null,"Благоустройство",7951700,"0500","0503",null,{"$f":"G53","v":15250}]
[null,"Выполнение функций органами местного самоуправления",7951700,"0500","0503","500",15250]
[8,"Целевые программы муниципальных образований",7950000]
[null,"Целевая программа \"Развитие и поддержка субъектов малого и среднего предпринимательства на территории Тосненского городского поселения Тосненского района Ленинградской области на 2010 -2013 годы\"",7951800,null,null,null,{"$f":"G58","v":350}]
[null,"Национальная экономика",7951800,"0400",null,null,{"$f":"G57","v":350}]
[null,"Другие вопросы в области национальной экономики",7951800,"0400","0412",null,{"$f":"G58","v":350}]
[null,"Выполнение функций органами местного самоуправления",7951800,"0400","0412","500",350]
[null,"ИТОГО:",null,null,null,null,{"$f":"G18+G28+G33+G38+G48+G43+G53+G58","v":26384},44272.800000000003]

{"sheet":"прил 13","index":1,"n_rows":59,"n_cols":9,"rows_kept":59,"cut":false,"hidden":false,"merged":[[8,1,8,7],[9,1,9,7]]}
[null,null,null,null,"Приложение 13"]
[null,null,null,null," к решению Совета депутатов"]
[null,null,null,null,"МО Тельмановского сельского поселения"]
[null,null,null,null,"Тосненского района"]
[null,null,null,null,"Ленинградской области"]
[null,null,null,null,"от 15.12.2010 г. № 160 "]
[]
[]
[null,"Распределение бюджетных ассигнований"]
[null,"на реализацию ведомственных целевых программ на 2012-2013 годы"]
[null,null,null,null,null,null,null,"  тыс.руб."]
[]
["№ п/п","Наименование","ЦСР (целевая статья)","Рз (раздел)","ПР (подраздел)","ВР (вид расхода)",2012,2013,"2010 год"]
[1,"Целевые программы муниципальных образований",7950000]
[null,"Ведомственная целевая программа «Переход на отпуск коммунальных ресурсов (тепловой энергии, горячей и холодной воды) потребителям Тельмановского сельского поселения Тосненского района Ленинградской области в соответствии с показаниями коллективных (общедо",7950001,null,null,null,null,{"$f":"H18","v":7500}]
[null,"Жилищно-коммунальное хозяйство",7950001,"0500",null,null,null,{"$f":"H18","v":7500}]
[null,"Коммунальное хозяйство",7950001,"0500","0502",null,null,{"$f":"H18","v":7500}]
[null,"Выполнение функций органами местного самоуправления",7950001,"0500","0502","500",null,7500]
[1,"Целевые программы муниципальных образований",7950000]
[null,"Долгосрочная комплексная программа по благоустройству населенных пунктов по МО \"Тельмановское сельское поселение\" на 2010-2012 годы",7950002,null,null,null,{"$f":"G21","v":3995},0]
[null,"Жилищно-коммунальное хозяйство",7950002,"0500",null,null,3995,0]
[null,"Благоустройство",7950002,"0500","0503",null,3995,0]
[null,"Выполнение функций органами местного самоуправления",7950002,"0500","0503","500",3995]
[2,"Целевые программы муниципальных образований",7950000]
[null,"Долгосрочная программа \"Молодежь Тельмановского сельского поселения в 2010-2012гг.",7950003,null,null,null,{"$f":"G28","v":363},{"$f":"H28","v":400},750]
[null,"Образование",7950003,"0700",null,null,{"$f":"G28","v":363},{"$f":"H28","v":400},750]
[null,"Молодежная политика и оздоровление детей",7950003,"0700","0707",null,{"$f":"G28","v":363},{"$f":"H28","v":400},750]
[null,"Выполнение функций органами местного самоуправления",7950003,"0700","0707",500,363,400,750]
[3,"Целевые программы муниципальных образований",7950000]
[null,"Целевая программа \"Сохранение и развитие сферы культуры Тосненского городского поселения Тосненского района Ленинградской области на 2010-2012 годы\"",7951300,"",null,"",null,{"$f":"H33","v":5400},1045.5]
[null,"Культура, кинематография, средства массовой информации",7951300,"0800",null,"",null,{"$f":"H33","v":5400},1045.5]
[null,"Другие вопросы в области культуры, кинематографии и средств массовой информации",7951300,"0800","0806","",null,{"$f":"H33","v":5400},1045.5]
[null,"Выполнение функций органами местного самоуправления",7951300,"0800","0806","500",null,5400,1045.5]
[3,"Целевые программы муниципальных образований",7950000]
[null,"Долгосрочная программа \"Развитие физичческой культуры и спорта в муниципальном образовании Тельмановское сельское поселение Тосненского района Ленинградской области на 2010-2012гг.\"",7950004,null,null,null,{"$f":"G38","v":465},{"$f":"H38","v":0}]
[null,"Здравоохранение, физическая культура и спорт",7950004,"0100",null,null,{"$f":"G38","v":465},{"$f":"H38","v":0}]
[null,"Физическая культура и спорт",7950004,"0100","1105",null,{"$f":"G38","v":465},{"$f":"H38","v":0}]
[null,"Выполнение функций органами местного самоуправления",7950004,"0100","1105",500,465]
[5,"Целевые программы муниципальных образований",7950000]
[null,"Целевая программа \"Пожарная безопасность на территории Тосненского городского поселения Тосненского района Ленинградской области на 2008-2010 годы\"",7951500,null,null,null,null,{"$f":"H41","v":1963}]
[null,"Национальная безопасность и правоохранительная деятельность",7951500,"0300",null,null,null,{"$f":"H42","v":1963}]
[null,"Защита населения и территории от чрезвычайных ситуаций природного и техногенного характера, гражданская оборона",7951500,"0300","0309",null,null,{"$f":"H43","v":1963}]
[null,"Выполнение функций органами местного самоуправления",7951500,"0300","0309",500,null,1963]
[6,"Целевые программы муниципальных образований",7950000]
[null,"Целевая программа \"Газификация индивидуальных жилых домов, расположенных на территории Тосненского городского поселения Тосненского района Ленинградской области на период 2008 -2013 годы\"",7951600,null,null,null,null,{"$f":"H46","v":2500}]
[null,"Жилищно-коммунальное хозяйство",7951600,"0500",null,null,null,{"$f":"H47","v":2500}]
[null,"Коммунальное хозяйство",7951600,"0500","0502",null,null,{"$f":"H48","v":2500}]
[null,"Бюджетные инвестиции",7951600,"0500","0502","003",null,2500]
[4,"Целевые программы муниципальных образований",7950000]
[null,"Целевая программа \"Повышение безопасности дорожного движения на территории Тосненского городского поселения Тосненского района Ленинградской области на 2010 -2012 годы\"",7951700,null,null,null,null,{"$f":"H51","v":15250}]
[null,"Жилищно-коммунальное хозяйство",7951700,"0500",null,null,null,{"$f":"H52","v":15250}]
[null,"Благоустройство",7951700,"0500","0503",null,null,{"$f":"H53","v":15250}]
[null,"Выполнение функций органами местного самоуправления",7951700,"0500","0503","500",null,15250]
[8,"Целевые программы муниципальных образований",7950000]
[null,"Целевая программа \"Развитие и поддержка субъектов малого и среднего предпринимательства на территории Тосненского городского поселения Тосненского района Ленинградской области на 2010 -2013 годы\"",7951800,null,null,null,null,{"$f":"H58","v":350}]
[null,"Национальная экономика",7951800,"0400",null,null,null,{"$f":"H57","v":350}]
[null,"Другие вопросы в области национальной экономики",7951800,"0400","0412",null,null,{"$f":"H58","v":350}]
[null,"Выполнение функций органами местного самоуправления",7951800,"0400","0412","500",null,350]
[null,"ИТОГО:",null,null,null,null,null,{"$f":"H18+H28+H33+H38+H48+H43+H53+H58","v":33363},44272.800000000003]

{"sheet":"прил 18","index":2,"n_rows":22,"n_cols":3,"rows_kept":22,"cut":false,"hidden":false,"merged":[[0,1,0,3],[1,1,1,3],[2,1,2,3],[3,1,3,3],[8,0,8,2],[9,0,9,2],[12,0,12,1],[13,0,13,1],[5,1,5,2],[6,0,6,2],[7,0,7,2],[18,0,18,1],[21,0,21,1],[19,0,19,1],[20,0,20,1],[14,0,14,1],[15,0,15,1],[16,0,16,1],[17,0,17,1]]}
[null,"                                                                  Приложение 18"]
[null,"                                                                  к решению Совета депутатов"]
[null,"                                                                  МО Тельмановское сельское поселение"]
[null,"                                                                  Тосненского района Ленинградской области"]
[null,"                                                                   от 15.12.2010 г. № 160 "]
[]
["Нормативы поступления доходов в  бюджет"]
["МО Тельмановское сельское поселение Тосненского района Ленинградской области"]
["от уплаты федеральных, региональных и местных налогов и сборов"]
["на 2011 год и плановый период 2012 - 2013 годов"]
[null,"                                                                                                                                                                                                                                                                           "]
[]
["Наименование дохода",null,"Местный бюджет"]
["Налог на доходы физических лиц",null,0.1]
["Налог на имущество физических лиц",null,1]
["Земельный налог",null,1]
["Транспортный налог",null,0.5]
["Доходы от передачи в аренду земельных участков",null,0.5]
["Доходы от продажи земельных участков",null,0.5]
["Доходы от сдачи в аренду имущества",null,1]
["Доходы от оказания платных услуг",null,1]
["Доходы от реализации иного имущества",null,1]